{"text_format":"2","workbook":"xlsx","n_sheets":5,"sheets":["Planilha Final","CPU","BDI SERV","BDI FORN","CRONOGRAMA"],"not_rendered":{"charts":0,"images":1,"macros":0,"external_links":0,"defined_names":3,"comments":0,"pivot_tables":0},"unopened":[],"bounds":{"document_bytes":16777216,"sheet_cells":100000,"run_cost":"one","rows_first":2000,"rows_last":500,"rows_between":2000,"halvings":0,"cell_chars":16384,"cell_head_chars":4096},"cells_cut":0,"cells_raw":0,"read":"whole","date_system":"1900"}

{"sheet":"Planilha Final","index":0,"n_rows":119,"n_cols":8,"rows_kept":119,"cut":false,"hidden":false,"merged":[[118,0,118,1],[0,1,0,6],[1,1,1,6],[2,1,2,6],[3,0,3,6],[7,0,7,6]]}
[null,"Ministério da Integração Nacional"]
[null,"Companhia de Desenvolvimento dos Vales do São Francisco e do Parnaíba"]
[null,"Área de Revitalização das Bacias Hidrográficas"]
["OBRA: ESCOLA DE MESTRE QUEIJEIRO ARTESANAL (SÃO ROQUE DE MINAS/MG)"]
["DATA-BASE:  JUNHO/2018",{"$nulls":4},"BDI Serviços:",{"$f":"'BDI SERV'!D23","v":0.22787916803503028}]
["PRAZO DE EXECUÇÃO:  180 DIAS",{"$nulls":4},"BDI Materiais:",{"$f":"'BDI FORN'!D23","v":0.14069357291126083}]
["ITEM","DISCRIMINAÇÃO","UNID.","QUANT.","P. UNITÁRIO","P.UNIT.C/ BDI","P. TOTAL",{"$f":"G119","v":480373.24999999977}]
[]
[1,"SERVIÇOS PRELIMINARES E URBANIZAÇÃO"]
["1.1","Mobilização / Desmobilização de equipamentos e pessoal","vb",2,1600.2160000000001,{"$f":"ROUND((1+$G$5)*E10,2)","v":1964.87},{"$f":"ROUND(D10*F10,2)","v":3929.74}]
["1.2","Fornecimento e assentamento de placa de obra em chapa de aço galvanizado","m²",6,321.47000000000003,{"$f":"ROUND((1+$G$5)*E11,2)","v":394.73},2368.38]
["1.3","Aluguel de conteiner para canteiro de obras","mês",6,339.84,417.28,2503.6799999999998]
["1.4","Administração local de obra","vb",1,28233.600000000002,34667.449999999997,34667.449999999997,{"$f":"F13/G119","v":7.2167736234272029E-2}]
["1.5","Locação convencional de obra com gabarito de tábuas corridas, pontaleteadas a cada 1,50m","m²",450,4.07,5,2250]
["1.6","Desmatamento e limpeza mecanizada de terreno, com árvores até 15cm","m²",1600,0.33,0.41,656]
["1.7","Escavação a céu aberto, incluindo carga, transporte e descarga de material de 1a categoria, DMT até 200m","m³",300,7.44,9.14,2742]
["1.8","Execução e compactação de aterro com solo predominantemente argiloso - exclusive escavação, carga e transporte de solo","m³",300,5.18,6.36,1908]
["1.9","Plantio de grama em placas","m²",400,7.3,8.9600000000000009,3584]
["1.10","Portão para veículos em tela de arame galvanizado nº 12, malha 2\" e moldura em tubo de aço, com duas folhas de abrir, incluso ferragens - fornecimento e instalação","m²",9,900.49,1105.69,9951.2099999999991]
["1.11","Meio fio em concreto moldado in loco, 11,5cm de base e 22cm de altura","m",200,20.14,24.73,4946]
["1.12","Calha em concreto simples, em meia cana, diâmetro 200mm","m",100,34.159999999999997,41.94,4194]
[]
[2,"FUNDAÇÕES E ESTRUTURA"]
["2.1","Escavação manual de valas","m³",140,54.47,{"$f":"ROUND((1+$G$5)*E24,2)","v":66.88},{"$f":"ROUND(D24*F24,2)","v":9363.2000000000007}]
["2.2","Regularização de fundo de valas","m²",120,4.29,5.27,632.4]
["2.3","Lastro de concreto magro, consumo mínimo de cimento de 150kg/m³","m³",5,397.07,487.55,2437.75]
["2.4","Montagem e desmontagem de forma para estrutura em chapa de madeira compensada resinada, reaproveitamento 8x","m²",620,41.94,51.5,31930]
["2.5","Armação de estrutura convencional de concreto com aço CA-50","kg",4900,6.39,7.85,38465]
["2.6","Concretagem de estruturas com concreto fck = 25MPa, com uso de baldes - lançamento, adensamento e acabamento","m³",65,411.98,505.86,32880.9]
["2.7","Escoramento de formas com madeira de 3a qualidade, não aparelhada","m³",100,10.63,13.05,1305]
["2.8","Laje pré-moldada para fôrro, sobrecarga 100kg/m², inclusive escoramento, capa de concreto fck = 20MPa e ferragem negativa","m²",280,66.98,82.24,23027.200000000001]
["2.9","Reaterro manual de valas com compactação mecanizada","m³",110,22.9,28.12,3093.2]
[]
[3,"ALVENARIA, REVESTIMENTO E ESQUADRIAS"]
["3.1","Alvenaria de vedação com tijolo cerâmico furado 14x19x39cm (espessura 14cm)","m²",650,44.2,{"$f":"ROUND((1+$G$5)*E35,2)","v":54.27},{"$f":"ROUND(D35*F35,2)","v":35275.5}]
["3.2","Emboço / Massa única em argamassa 1:2:8 aplicada manualmente","m²",1400,12.46,15.3,21420]
["3.3","Revestimento de paredes com cerâmica esmaltada 20x20cm","m²",320,37.700000000000003,46.29,14812.8]
["3.4","Pintura látex acrílico em paredes, duas demãos","m²",1080,6.92,8.5,9180]
["3.5","Alçapão em ferro - 70x70cm","unid.",1,147.44,181.04,181.04]
["3.6","Pintura esmalte sintético sobre superfície metálica, duas demãos","m²",19,22.58,27.73,526.87]
["3.7","Porta de abrir de aluminio, tipo veneziana, com guarnição - fornecimento e instalação","m²",20,517.89,635.91,12718.2]
["3.8","Janela de alumínio de correr, 2 folhas, fixação com argamassa, com vidros - fornecimento e instalação","m²",24,313.95,385.49,9251.76]
["3.9","Janela de aluminio de correr, com veneziana e vidro, fixação com argamassa - fornecimento e instalação ","m²",14.4,665.45,817.09,11766.1]
["3.10","Janela de aluminio tipo Maxim-Ar, fixação com argamassa, com vidros - fornecimento e instalação","m²",6.4,514.75,632.04999999999995,4045.12]
["3.11","Porta de alumínio de abrir para vidro, 87 x 210cm, inclusive vidros - fornecimento e instalação","unid.",4,812.7,997.9,3991.6]
["3.12","Grade de ferro em barra chata 3/16\" - fornecimento e instalação","m²",30,258.12,316.94,9508.2000000000007]
["3.13","Fornecimento e colocação de tela tipo mosquiteiro em aço inox, malha 14x14, fio 0,31mm, em perfil de alumínio, requadro de 2,0x1,20m, fixada com parafusos no vão das janelas","unid.",5,313.73712799999998,385.23,1926.15]
["3.14","Divisória em granito cinza andorinha polido ou similar, e = 3cm, assentado com argamassa e arremate com cimento branco","m²",14,664.38,815.78,11420.92]
["3.15","Porta de madeira compensada e=10mm para cabine sanitária, 0,65 x 1,60m, inclusive dobradiças e fechadura com tarjeta \"livre/ocupado\"","unid.",6,234.34076000000002,287.74,1726.44]
["3.16","Bancada em granito cinza andorinha ou similar, e=2,5cm, inclusive testeira e rodabancada - fornecimento e assentamento","m²",12,656.20029999999997,805.73,9668.76]
[]
[4,"PISOS E COBERTURA"]
["4.1","Revestimento cerâmico para piso com placas tipo esmaltada extra 45x45cm","m²",250,30.3,{"$f":"ROUND((1+$G$5)*E53,2)","v":37.200000000000003},{"$f":"ROUND(D53*F53,2)","v":9300}]
["4.2","Execução de passeio ou piso de concreto moldado in loco, acabamento convencional, não armado","m³",10,381.33,468.23,4682.3]
["4.3","Peitoril e soleira em granito, largura 15cm, espessura 2cm","m",54,83.72,102.8,5551.2]
["4.4","Trama de madeira composto de ripas, caibros e terças para telhados até 2 águas para telha cerâmica de encaixe","m²",400,48.54,59.6,23840]
["4.5","Telhamento com telha cerâmica com até 2 águas, inclusive transporte vertical","m²",400,21.49,26.39,10556]
["4.6","Forro de PVC, inclusive estrutura de fixação","m²",250,33.659999999999997,41.33,10332.5]
["4.7","Rodapé cerâmico de 7cm de altura com placas tipo esmaltada extra 45x45cm","m",90,5.24,6.43,578.70000000000005]
["4.8","Calha em chapa de aço galvanizado nº 24, desenvolvimento de 33cm","m",70,35.93,44.12,3088.4]
[]
[5,"INSTALAÇÕES ELÉTRICAS E HIDRO-SANITÁRIAS"]
["5.1","Execução de instalações elétricas ","vb",1,2253.1999999999998,{"$f":"ROUND((1+$G$5)*E63,2)","v":2766.66},{"$f":"ROUND(D63*F63,2)","v":2766.66}]
["5.1.1","Padrão CEMIG aéreo, carga instalada até 10kw, bifásico","unid.",1,1070.52,1314.47,{"$f":"ROUND(D64*F64,2)","v":1314.47},"SETOP"]
["5.1.2","Caixa de passagem em alvenaria 40x40x50, fundo com brita e tampa","unid.",5,177.57,218.03,{"$f":"ROUND(D65*F65,2)","v":1090.1500000000001}]
[{"$nulls":5},0]
["5.2","Execução de instalações hidro-sanitárias (por unidade)","vb",1,2292,2814.3,{"$f":"ROUND(D67*F67,2)","v":2814.3}]
["5.2.1","Caixa d'água em polietileno 1.000 litros com acessórios - fornecimento e instalação","unid.",2,698.65,857.86,1715.72]
["5.2.2","Caixa de inspeção em concreto pré-moldado, 60x60x60cm - fornecimento e instalação","unid.",10,385.27,473.07,4730.7]
["5.2.3","Cuba de embutir em aço inox média - fornecimento e instalação","unid.",4,132.69999999999999,162.94,651.76]
["5.2.4","Cuba de embutir oval em louça branca - fornecimento e instalação","unid.",9,121.25,148.88,1339.92]
["5.2.5","Tanque em mármore sintético suspenso 22L ou equivalente, inclusive válvula, torneira de metal e sifão flexível em PVC - fornecimento e instalação ","unid.",1,205.32,252.11,252.11]
["5.2.6","Vaso sanitário sifonado com caixa acoplada em louça branca, inclusive engate flexível - fornecimento e instalação","unid.",7,412.97,507.08,3549.56]
["5.2.7","Tanque séptico em concreto pré-moldado, diâmetro interno 1,10m, altura 2,50m - Volume útil: 2.138,2L (5 contribuintes)","unid.",1,1065.9000000000001,1308.8,1308.8]
["5.2.8","Filtro anaeróbio retangular em alvenaria, 0,80 x 1,20 x 1,67m - Volume útil: 1.152L (5 contribuintes)","unid.",1,2724.78,3345.7,3345.7]
["5.2.9","Sumidouro em alvenaria, medidas internas 0,80 x 1,40 x 3,0m - área de infiltração de 13,2m² (5 contribuintes)","unid.",1,2731.44,3353.88,3353.88]
[]
[]
[6,"FORNECIMENTOS DE MATERIAIS"]
["6.1","Materiais elétricos"]
["6.1.1","Cabo de cobre flexível, isolamento em PVC 450/750V, 1,5mm2","m",300,0.64,{"$f":"ROUND((1+$G$5)*E81,2)","v":0.79},{"$f":"ROUND(D81*F81,2)","v":237}]
["6.1.2","Cabo de cobre flexível, isolamento em PVC 450/750V, 2,5mm2","m",500,1.02,1.25,625]
["6.1.3","Cabo de cobre flexível, isolamento em PVC 450/750V, 4mm2","m",300,1.82,2.23,669]
["6.1.4","Cabo de cobre flexível, isolamento em PVC 450/750V, 10mm2","m",200,4.3600000000000003,5.35,1070]
["6.1.5","Caixa de passagem em PVC 4\"x2\" para eletroduto flexível","unid.",40,1.75,2.15,86]
["6.1.6","Curva 90º eletroduto PVC rosca 1.1/4\"","unid.",3,3.48,4.2699999999999996,12.81]
["6.1.7","Disjuntor bipolar tipo DIN, de 6 até 32A","unid.",7,52.75,64.77,453.39]
["6.1.8","Disjuntor monopolar tipo DIN, de 6 até 32A","unid.",6,9.1999999999999993,11.3,67.8]
["6.1.9","Eletroduto corrugado PVC 3/4\"","m",90,1.08,1.33,119.7]
["6.1.10","Eletroduto PVC rosca 1.1/4\"","m",60,4.66,5.72,343.2]
["6.1.11","Interruptor simples + Tomada 2P+T 10A, 250V - conjunto montado para embutir 4\"x2\" (placa + suporte + módulos)","unid.",18,10.82,13.29,239.22]
["6.1.12","Lâmpada fluorescente compacta, branca, 15W, base E27","unid.",2,8.57,10.52,21.04]
["6.1.13","Luminaria de sobrepor em chapa de aço para 2 lampadas fluorescentes 36W, aletada (proteção anti-queda), completa - lâmpada e reator inclusos","unid.",30,58.93,72.36,2170.8000000000002]
["6.1.14","Luminária tipo tartaruga em aluminio, com grade, para 1 lâmpada, base E27","unid.",2,34.82,42.75,85.5]
["6.1.15","Quadro de distribuição com barramento terra / neutro, de embutir, para 8 disjuntores DIN","unid.",2,60.29,74.03,148.06]
["6.1.16","Tomada 2P+T 10A, 250V - conjunto montado para embutir 4\"x2\" (placa + suporte + módulos)","unid.",22,6.5,7.98,175.56]
[]
["6.2","Materiais hidro-sanitários"]
["6.2.1","Acabamento cromado para registro 3/4\"","unid.",6,19.09,{"$f":"ROUND((1+$G$5)*E99,2)","v":23.44},{"$f":"ROUND(D99*F99,2)","v":140.63999999999999}]
["6.2.2","Engate flexível plástico, 1/2\" x 40cm","unid.",13,6.26,7.69,99.97]
["6.2.3","Joelho 45º PVC esgoto DN 40mm","unid.",11,1.22,1.5,16.5]
["6.2.4","Joelho 90º PVC soldável 25mm","unid.",36,0.54,0.66,23.76]
["6.2.5","Joelho 90º PVC soldável com bucha latão, 25mm x 1/2\"","unid.",14,1.28,1.57,21.98]
["6.2.6","Ralo sifonado PVC cilindrico 100x40mm com grelha redonda branca","unid.",11,4.7,5.77,63.47]
["6.2.7","Registro gaveta bruto em latão forjado 3/4\"","unid.",6,15.81,19.41,116.46]
["6.2.8","Sifão plástico, tipo copo, para pia ou lavatório, 1 x 1.1/2\"","unid.",13,13.2,16.21,210.73]
["6.2.9","Tê PVC esgoto DN 40mm","unid.",2,2.1,2.58,5.16]
["6.2.10","Tê PVC soldável 25mm","unid.",9,0.9,1.1100000000000001,9.99]
["6.2.11","Tê PVC soldável com bucha latão na bolsa central 25mm x 1/2\"","unid.",20,6.8,8.35,167]
["6.2.12","Torneira cromada de mesa para tanque ou lavatório, 3/4\"","unid.",10,42.29,51.93,519.29999999999995]
["6.2.13","Torneira clínica de mesa, bica alta com alavanca, acionamento com cotovelo, em metal cromado","unid.",2,109.9,134.94,269.88]
["6.2.14","Tubo PVC esgoto, série normal, DN 40mm","m",24,2.95,3.62,86.88]
["6.2.15","Tubo PVC esgoto, série normal, DN 50mm","m",12,5.07,6.23,74.760000000000005]
["6.2.16","Tubo PVC esgoto, série normal, DN 100mm","m",120,7.8,9.58,1149.5999999999999]
["6.2.17","Tubo PVC rígido soldável DN 25mm","m",120,2.42,2.97,356.4]
["6.2.18","Válvula em plástico branco para tanque ou lavatório de 1\"","unid.",9,2.81,3.45,31.05]
["6.2.19","Válvula em plástico cromado tipo americana para pia de cozinha 3.12\" x 1.1/2\"\"","unid.",4,13.89,17.059999999999999,68.239999999999995]
[]
["TOTAL GERAL DA OBRA COM BDI ",{"$nulls":5},{"$f":"SUM(G9:G118)","v":480373.24999999977}]

{"sheet":"CPU","index":1,"n_rows":185,"n_cols":8,"rows_kept":185,"cut":false,"hidden":false,"merged":[[129,2,129,6],[130,0,130,6],[131,0,131,6],[132,0,132,6],[119,0,119,6],[120,0,120,7],[123,0,123,6],[124,0,124,7],[128,0,128,6],[106,1,106,7],[108,0,108,5],[109,0,109,7],[112,0,112,6],[113,0,113,7],[102,2,102,6],[103,0,103,6],[104,0,104,6],[105,0,105,6],[78,0,78,6],[80,1,80,7],[82,0,82,5],[83,0,83,7],[86,0,86,6],[87,0,87,7],[101,0,101,6],[96,0,96,6],[97,0,97,7],[53,1,53,7],[55,0,55,5],[56,0,56,7],[59,0,59,6],[60,0,60,7],[65,0,65,6],[66,0,66,7],[70,0,70,7],[92,0,92,6],[93,0,93,7],[74,0,74,6],[75,2,75,6],[76,0,76,6],[77,0,77,6],[69,0,69,6],[48,2,48,6],[49,0,49,6],[50,0,50,6],[51,0,51,6],[33,0,33,7],[38,0,38,6],[39,0,39,7],[42,0,42,6],[43,0,43,7],[47,0,47,6],[32,0,32,6],[12,0,12,7],[15,0,15,6],[16,0,16,7],[20,0,20,6],[21,2,21,6],[22,0,22,6],[23,0,23,6],[24,0,24,6],[26,1,26,7],[28,0,28,5],[29,0,29,7],[11,0,11,6],[0,1,0,7],[2,0,2,5],[3,0,3,7],[6,0,6,6],[7,0,7,7],[133,1,133,7],[135,0,135,5],[136,0,136,7],[139,0,139,6],[140,0,140,7],[155,2,155,6],[156,0,156,6],[157,0,157,6],[158,0,158,6],[145,0,145,6],[146,0,146,7],[149,0,149,6],[150,0,150,7],[154,0,154,6],[159,1,159,7],[161,0,161,5],[162,0,162,7],[165,0,165,6],[166,0,166,7],[181,2,181,6],[182,0,182,6],[183,0,183,6],[184,0,184,6],[171,0,171,6],[172,0,172,7],[175,0,175,6],[176,0,176,7],[180,0,180,6]]}
["CODEVASF"," COMPOSIÇÃO DE PREÇO UNITÁRIO"]
["OBRA: ",{"$nulls":5},"DATA: "]
["SERVIÇO :Mobilização/Desmobilização de equipamentos e pessoal",{"$nulls":5},"UNIDADE: ","gl"]
["EQUIPAMENTO"]
["DISCRIMINAÇÃO","UNIDADE","QUANT.","PROD","IMPROD","P.UNIT. PROD","P.UNIT. IMPR","P.TOTAL"]
["Caminhão com carroceria fixa e guindauto para içamento de carga de até 5,5 ton.(inclusive motorista)","h",12,0.9,0.1,130.04,29.82,{"$f":"C6*D6*F6+C6*E6*G6","v":1440.2160000000001}]
["SUB-TOTAL",{"$nulls":6},{"$f":"SUM(H6:H6)","v":1440.2160000000001}]
["MATERIAL"]
["DISCRIMINAÇÃO","UNIDADE","QUANT.",null,null,null,"P.UNIT.","P.TOTAL"]
["Passagem de ônibus","unid.",2,null,null,null,80,{"$f":"C10*G10","v":160}]
[{"$nulls":7},{"$f":"C11*G11","v":0}]
["SUB-TOTAL",{"$nulls":6},{"$f":"SUM(H10:H11)","v":160}]
["SERVIÇOS - COMPOSIÇÕES AUXILIARES"]
["DISCRIMINAÇÃO","UNIDADE","QUANT.",null,null,null,"P.UNIT.","P.TOTAL"]
[{"$nulls":7},{"$f":"C15*G15","v":0}]
["SUB-TOTAL",{"$nulls":6},{"$f":"SUM(H15:H15)","v":0}]
["MÃO DE OBRA"]
["DISCRIMINAÇÃO","UNIDADE","QUANT.",null,null,null,"P.UNIT.","P.TOTAL"]
[{"$nulls":7},{"$f":"C19*G19","v":0}]
[{"$nulls":7},{"$f":"C20*G20","v":0}]
["SUB-TOTAL",{"$nulls":6},{"$f":"SUM(H19:H20)","v":0}]
["PRODUÇÃO DA EQUIPE",1,"CUSTO ",{"$nulls":4},{"$f":"H21+H16+H12+H7","v":1600.2160000000001}]
["TOTAL",{"$nulls":6},{"$f":"H22/B22","v":1600.2160000000001}]
["BDI                %",{"$nulls":6},{"$f":"1+'BDI SERV'!D23","v":1.2278791680350303}]
["TOTAL DO SERVIÇO - R$",{"$nulls":6},{"$f":"H23*H24","v":1964.8718907563441}]
[]
["CODEVASF"," COMPOSIÇÃO DE PREÇO UNITÁRIO"]
["OBRA: ",{"$nulls":5},"DATA: "]
["SERVIÇO :Administração local",{"$nulls":5},"UNIDADE: ","MÊS"]
["EQUIPAMENTO"]
["DISCRIMINAÇÃO","UNIDADE","QUANT.","PROD","IMPROD","P.UNIT. PROD","P.UNIT. IMPR","P.TOTAL"]
[{"$nulls":7},{"$f":"C32*D32*F32+C32*E32*G32","v":0}]
["SUB-TOTAL",{"$nulls":6},{"$f":"SUM(H32:H32)","v":0}]
["MATERIAL"]
["DISCRIMINAÇÃO","UNIDADE","QUANT.",null,null,null,"P.UNIT.","P.TOTAL"]
[{"$nulls":7},{"$f":"C36*G36","v":0}]
[{"$nulls":7},{"$f":"C37*G37","v":0}]
[{"$nulls":7},{"$f":"C38*G38","v":0}]
["SUB-TOTAL",{"$nulls":6},{"$f":"SUM(H36:H38)","v":0}]
["SERVIÇOS - COMPOSIÇÕES AUXILIARES"]
["DISCRIMINAÇÃO","UNIDADE","QUANT.",null,null,null,"P.UNIT.","P.TOTAL"]
[{"$nulls":7},{"$f":"C42*G42","v":0}]
["SUB-TOTAL",{"$nulls":6},{"$f":"SUM(H42:H42)","v":0}]
["MÃO DE OBRA"]
["DISCRIMINAÇÃO","UNIDADE","QUANT.",null,null,null,"P.UNIT.","P.TOTAL"]
["Encarregado Geral ","h",80,null,null,null,34.700000000000003,{"$f":"C46*G46","v":2776}]
["Engenheiro","h",24,null,null,null,80.400000000000006,{"$f":"C47*G47","v":1929.6000000000001}]
["SUB-TOTAL",{"$nulls":6},{"$f":"SUM(H46:H47)","v":4705.6000000000004}]
["PRODUÇÃO DA EQUIPE",1,"CUSTO ",{"$nulls":4},{"$f":"H48+H43+H39+H33","v":4705.6000000000004}]
["TOTAL",{"$nulls":6},{"$f":"H49/B49","v":4705.6000000000004}]
["BDI                %",{"$nulls":6},{"$f":"H24","v":1.2278791680350303}]
["TOTAL DO SERVIÇO - R$",{"$nulls":6},{"$f":"H50*H51","v":5777.9082131056393}]
[]
["CODEVASF"," COMPOSIÇÃO DE PREÇO UNITÁRIO"]
["OBRA: ",{"$nulls":5},"DATA: "]
["SERVIÇO :Instalações Elétricas",{"$nulls":5},"UNIDADE: ","GL"]
["EQUIPAMENTO"]
["DISCRIMINAÇÃO","UNIDADE","QUANT.","PROD","IMPROD","P.UNIT. PROD","P.UNIT. IMPR","P.TOTAL"]
[{"$nulls":7},{"$f":"C59*D59*F59+C59*E59*G59","v":0}]
["SUB-TOTAL",{"$nulls":6},{"$f":"SUM(H59:H59)","v":0}]
["MATERIAL"]
["DISCRIMINAÇÃO","UNIDADE","QUANT.",null,null,null,"P.UNIT.","P.TOTAL"]
["Fita isolante, etc...","vb",1,null,null,null,50,{"$f":"C63*G63","v":50}]
[{"$nulls":7},{"$f":"C64*G64","v":0}]
[{"$nulls":7},{"$f":"C65*G65","v":0}]
["SUB-TOTAL",{"$nulls":6},{"$f":"SUM(H63:H65)","v":50}]
["SERVIÇOS - COMPOSIÇÕES AUXILIARES"]
["DISCRIMINAÇÃO","UNIDADE","QUANT.",null,null,null,"P.UNIT.","P.TOTAL"]
[{"$nulls":7},{"$f":"C69*G69","v":0}]
["SUB-TOTAL",{"$nulls":6},{"$f":"SUM(H69:H69)","v":0}]
["MÃO DE OBRA"]
["DISCRIMINAÇÃO","UNIDADE","QUANT.",null,null,null,"P.UNIT.","P.TOTAL"]
["Eletricista","h",80,null,null,null,16.18,{"$f":"C73*G73","v":1294.4000000000001}]
["Ajudante de Eletricista","h",80,null,null,null,11.36,{"$f":"C74*G74","v":908.8}]
["SUB-TOTAL",{"$nulls":6},{"$f":"SUM(H73:H74)","v":2203.1999999999998}]
["PRODUÇÃO DA EQUIPE",1,"CUSTO ",{"$nulls":4},{"$f":"H75+H70+H66+H60","v":2253.1999999999998}]
["TOTAL",{"$nulls":6},{"$f":"H76/B76","v":2253.1999999999998}]
["BDI                %",{"$nulls":6},{"$f":"H24","v":1.2278791680350303}]
["TOTAL DO SERVIÇO - R$",{"$nulls":6},{"$f":"H77*H78","v":2766.65734141653}]
[]
["CODEVASF"," COMPOSIÇÃO DE PREÇO UNITÁRIO"]
["OBRA: ",{"$nulls":5},"DATA: "]
["SERVIÇO :Instalações Hidro-Sanitárias",{"$nulls":5},"UNIDADE: ","GL"]
["EQUIPAMENTO"]
["DISCRIMINAÇÃO","UNIDADE","QUANT.","PROD","IMPROD","P.UNIT. PROD","P.UNIT. IMPR","P.TOTAL"]
[{"$nulls":7},{"$f":"C86*D86*F86+C86*E86*G86","v":0}]
["SUB-TOTAL",{"$nulls":6},{"$f":"SUM(H86:H86)","v":0}]
["MATERIAL"]
["DISCRIMINAÇÃO","UNIDADE","QUANT.",null,null,null,"P.UNIT.","P.TOTAL"]
["Cola PVC, lixa, veda-rosca, etc...","vb",1,null,null,null,80,{"$f":"C90*G90","v":80}]
[{"$nulls":7},{"$f":"C91*G91","v":0}]
[{"$nulls":7},{"$f":"C92*G92","v":0}]
["SUB-TOTAL",{"$nulls":6},{"$f":"SUM(H90:H92)","v":80}]
["SERVIÇOS - COMPOSIÇÕES AUXILIARES"]
["DISCRIMINAÇÃO","UNIDADE","QUANT.",null,null,null,"P.UNIT.","P.TOTAL"]
[{"$nulls":7},{"$f":"C96*G96","v":0}]
["SUB-TOTAL",{"$nulls":6},{"$f":"SUM(H96:H96)","v":0}]
["MÃO DE OBRA"]
["DISCRIMINAÇÃO","UNIDADE","QUANT.",null,null,null,"P.UNIT.","P.TOTAL"]
["Bombeiro Hidráulico","h",80,null,null,null,16.18,{"$f":"C100*G100","v":1294.4000000000001}]
["Ajudante de Encanador","h",80,null,null,null,11.47,{"$f":"C101*G101","v":917.6}]
["SUB-TOTAL",{"$nulls":6},{"$f":"SUM(H100:H101)","v":2212}]
["PRODUÇÃO DA EQUIPE",1,"CUSTO ",{"$nulls":4},{"$f":"H102+H97+H93+H87","v":2292}]
["TOTAL",{"$nulls":6},{"$f":"H103/B103","v":2292}]
["BDI                %",{"$nulls":6},{"$f":"H24","v":1.2278791680350303}]
["TOTAL DO SERVIÇO - R$",{"$nulls":6},{"$f":"H104*H105","v":2814.2990531362893}]
["CODEVASF"," COMPOSIÇÃO DE PREÇO UNITÁRIO"]
["OBRA: ",{"$nulls":5},"DATA: "]
["SERVIÇO:  Porta de madeira compensada e=10mm para cabine sanitária, 0,65 x 1,60m, inclusive dobradiças e fechadura com tarjeta \"livre/ocupado\"",{"$nulls":5},"UNIDADE: ","Unid."]
["EQUIPAMENTO"]
["DISCRIMINAÇÃO","UNIDADE","QUANT.","PROD","IMPROD","P.UNIT. PROD","P.UNIT. IMPR","P.TOTAL"]
[{"$nulls":7},{"$f":"C112*D112*F112+C112*E112*G112","v":0}]
["SUB-TOTAL",{"$nulls":6},{"$f":"SUM(H112:H112)","v":0}]
["MATERIAL"]
["DISCRIMINAÇÃO","UNIDADE","QUANT.",null,null,null,"P.UNIT.","P.TOTAL"]
["PORTA DE MADEIRA, FOLHA LEVE, E = *35* MM, CAPA LISA EM HDF, ACABAMENTO MELAMINICO (11367)","M2",{"$f":"0.65*1.6*1.05","v":1.0920000000000001},null,null,null,75.83,{"$f":"C116*G116","v":82.806359999999998}]
["DOBRADICA EM ACO/FERRO, 3\" X 2 1/2\", E= 1,2 A 1,8 MM, SEM ANEL, CROMADO OU ZINCADO, TAMPA CHATA, COM PARAFUSOS (2433)","UNIDADE",2,null,null,null,14.36,{"$f":"C117*G117","v":28.72}]
["TARJETA TIPO LIVRE/OCUPADO PARA PORTA DE BANHEIRO (11457)","UNIDADE",1,null,null,null,22.36,{"$f":"C118*G118","v":22.36}]
[{"$nulls":7},{"$f":"C119*G119","v":0}]
["SUB-TOTAL",{"$nulls":6},{"$f":"SUM(H116:H119)","v":133.88636}]
["SERVIÇOS - COMPOSIÇÕES AUXILIARES"]
["DISCRIMINAÇÃO","UNIDADE","QUANT.",null,null,null,"P.UNIT.","P.TOTAL"]
[{"$nulls":7},{"$f":"C123*G123","v":0}]
["SUB-TOTAL",{"$nulls":6},{"$f":"SUM(H123:H123)","v":0}]
["MÃO DE OBRA"]
["DISCRIMINAÇÃO","UNIDADE","QUANT.",null,null,null,"P.UNIT.","P.TOTAL"]
["MARCENEIRO (12868)","h",4.3600000000000003,null,null,null,16.18,{"$f":"C127*G127","v":70.544800000000009}]
["AJUDANTE ESPECIALIZADO (0242)","h",2.1800000000000002,null,null,null,13.72,{"$f":"C128*G128","v":29.909600000000005}]
["SUB-TOTAL",{"$nulls":6},{"$f":"SUM(H127:H128)","v":100.45440000000002}]
["PRODUÇÃO DA EQUIPE",1,"CUSTO ",{"$nulls":4},{"$f":"H129+H124+H120+H113","v":234.34076000000002}]
["TOTAL",{"$nulls":6},{"$f":"H130/B130","v":234.34076000000002}]
["BDI                %",{"$nulls":6},{"$f":"H105","v":1.2278791680350303}]
["TOTAL DO SERVIÇO - R$",{"$nulls":6},{"$f":"H131*H132","v":287.74213742549671}]
["CODEVASF"," COMPOSIÇÃO DE PREÇO UNITÁRIO"]
["OBRA: ",{"$nulls":5},"DATA: "]
["SERVIÇO :Bancada em granito cinza andorinha ou similar, e=2,5cm, inclusive testeira e rodabancada - fornecimento e assentamento",{"$nulls":5},"UNIDADE: ","M2"]
["EQUIPAMENTO"]
["DISCRIMINAÇÃO","UNIDADE","QUANT.","PROD","IMPROD","P.UNIT. PROD","P.UNIT. IMPR","P.TOTAL"]
[{"$nulls":7},{"$f":"C139*D139*F139+C139*E139*G139","v":0}]
["SUB-TOTAL",{"$nulls":6},{"$f":"SUM(H139:H139)","v":0}]
["MATERIAL"]
["DISCRIMINAÇÃO","UNIDADE","QUANT.",null,null,null,"P.UNIT.","P.TOTAL"]
["GRANITO PARA BANCADA, POLIDO, TIPO ANDORINHA/ QUARTZ/ CASTELO/ CORUMBA OU OUTROS EQUIVALENTES DA REGIAO, E=  *2,5* CM","m2",1.2,null,null,null,483.01,{"$f":"C143*G143","v":579.61199999999997}]
["SUPORTE MAO-FRANCESA EM ACO, ABAS IGUAIS 40 CM, CAPACIDADE MINIMA 70 KG, BRANCO","UNIDADE",2,null,null,null,20.8,{"$f":"C144*G144","v":41.6}]
[{"$nulls":7},{"$f":"C145*G145","v":0}]
["SUB-TOTAL",{"$nulls":6},{"$f":"SUM(H143:H145)","v":621.21199999999999}]
["SERVIÇOS - COMPOSIÇÕES AUXILIARES"]
["DISCRIMINAÇÃO","UNIDADE","QUANT.",null,null,null,"P.UNIT.","P.TOTAL"]
[{"$nulls":7},{"$f":"C149*G149","v":0}]
["SUB-TOTAL",{"$nulls":6},{"$f":"SUM(H149:H149)","v":0}]
["MÃO DE OBRA"]
["DISCRIMINAÇÃO","UNIDADE","QUANT.",null,null,null,"P.UNIT.","P.TOTAL"]
["MARMORISTA/GRANITEIRO ","h",1.49,null,null,null,16.53,{"$f":"C153*G153","v":24.629700000000003}]
["SERVENTE ","h",0.98,null,null,null,10.57,{"$f":"C154*G154","v":10.358600000000001}]
["SUB-TOTAL",{"$nulls":6},{"$f":"SUM(H153:H154)","v":34.988300000000002}]
["PRODUÇÃO DA EQUIPE",1,"CUSTO ",{"$nulls":4},{"$f":"H155+H150+H146+H140","v":656.20029999999997}]
["TOTAL",{"$nulls":6},{"$f":"H156/B156","v":656.20029999999997}]
["BDI                %",{"$nulls":6},{"$f":"H132","v":1.2278791680350303}]
["TOTAL DO SERVIÇO - R$",{"$nulls":6},{"$f":"H157*H158","v":805.73467842833725}]
["CODEVASF"," COMPOSIÇÃO DE PREÇO UNITÁRIO"]
["OBRA: ",{"$nulls":5},"DATA: "]
["SERVIÇO:  Fornecimento e colocação de tela tipo mosquiteiro em aço inox, malha 14x14, fio 0,31mm, em perfil de aço galvanizado, requadro de 2,0x1,20m, fixada com parafusos no vão das janelas",{"$nulls":5},"UNIDADE: ","Unid."]
["EQUIPAMENTO"]
["DISCRIMINAÇÃO","UNIDADE","QUANT.","PROD","IMPROD","P.UNIT. PROD","P.UNIT. IMPR","P.TOTAL"]
[{"$nulls":7},{"$f":"C165*D165*F165+C165*E165*G165","v":0}]
["SUB-TOTAL",{"$nulls":6},{"$f":"SUM(H165:H165)","v":0}]
["MATERIAL"]
["DISCRIMINAÇÃO","UNIDADE","QUANT.",null,null,null,"P.UNIT.","P.TOTAL"]
["PERFIL DE ALUMINIO - QUADRADO 1/2\"","KG",{"$f":"(2*2+1.2*3)*0.19*2*1.1","v":3.1768000000000001},null,null,null,35.71,{"$f":"C169*G169","v":113.443528}]
["TELA MOSQUITEIRO EM AÇO INOX MALHA 14X14, FIO 0,31MM","M²",{"$f":"2*1.2*1.1","v":2.64},null,null,null,{"$f":"499.9/10","v":49.989999999999995},{"$f":"C170*G170","v":131.9736}]
["PARAFUSO COM BUCHA DE NYLON","UNIDADE",10,null,null,null,0.36,{"$f":"C171*G171","v":3.5999999999999996}]
["SUB-TOTAL",{"$nulls":6},{"$f":"SUM(H169:H171)","v":249.01712799999999}]
["SERVIÇOS - COMPOSIÇÕES AUXILIARES"]
["DISCRIMINAÇÃO","UNIDADE","QUANT.",null,null,null,"P.UNIT.","P.TOTAL"]
[{"$nulls":7},{"$f":"C175*G175","v":0}]
["SUB-TOTAL",{"$nulls":6},{"$f":"SUM(H175:H175)","v":0}]
["MÃO DE OBRA"]
["DISCRIMINAÇÃO","UNIDADE","QUANT.",null,null,null,"P.UNIT.","P.TOTAL"]
["SERRALHEIRO","h",4,null,null,null,16.18,{"$f":"C179*G179","v":64.72}]
[{"$nulls":7},{"$f":"C180*G180","v":0}]
["SUB-TOTAL",{"$nulls":6},{"$f":"SUM(H179:H180)","v":64.72}]
["PRODUÇÃO DA EQUIPE",1,"CUSTO ",{"$nulls":4},{"$f":"H181+H176+H172+H166","v":313.73712799999998}]
["TOTAL",{"$nulls":6},{"$f":"H182/B182","v":313.73712799999998}]
["BDI                %",{"$nulls":6},{"$f":"H158","v":1.2278791680350303}]
["TOTAL DO SERVIÇO - R$",{"$nulls":6},{"$f":"H183*H184","v":385.23128371033977}]

{"sheet":"BDI SERV","index":2,"n_rows":43,"n_cols":6,"rows_kept":43,"cut":false,"hidden":false,"merged":[[42,0,43,3],[39,0,39,3],[40,0,40,3],[41,0,41,3],[0,0,0,3],[1,0,1,3],[22,0,22,2],[23,0,23,4],[24,0,24,4]]}
["DETALHAMENTO DO BDI "]
["ARRANJOS PRODUTIVOS - SERVIÇOS"]
[{"$nulls":5}," "]
["Item","Descrição dos serviços","Preço de Venda (%)","Custo Direto (%)"]
[]
[1,"Administração Central (A)",null,0.03]
[]
[2,"Impostos e Taxas (I)",{"$f":"SUM(C9:C12)","v":8.6499999999999994E-2}]
["2.1","ISS (*)",0.05]
["2.2","PIS",6.4999999999999997E-3]
["2.3","Cofins",0.03]
["2.4","CPRB (INSS)",0]
[]
["3","Risco, seguro e garantia (R) ",null,{"$f":"SUM(D15:D17)","v":1.77E-2}]
["3.1","Risco",null,9.7000000000000003E-3]
["3.2","Seguro",null,4.0000000000000001E-3]
["3.3","Garantia",null,4.0000000000000001E-3]
[]
[4,"Despesas Financeiras (DF)",null,0.01]
[]
[5,"Lucro (L)",null,0.06]
[]
["BDI (%):",null,null,{"$f":"(((1+(D6+D14))*(1+D19)*(1+D21)/(1-C8))-1)","v":0.22787916803503028}]
["Fórmula do BDI, de acordo com Acórdão nº 2622/2013 - TCU/Plenárío:"]
["BDI (%) = (((1+(AC+S+R+G))*(1+DF)*(1+L)/(1-I))-1)*100"]
[]
[]
[null,"Custo Direto (CD):",1000]
[null,"Preço de Venda (PV):",{"$f":"C28*(1+D23/1)","v":1227.8791680350303}]
[]
[null,"ISS:",{"$f":"C9*C29","v":61.393958401751519}]
[null,"PIS:",{"$f":"C10*C29","v":7.9812145922276967}]
[null,"Cofins:",{"$f":"C11*C29","v":36.836375041050907}]
[null,"CPRB:",{"$f":"C12*C29","v":0}]
[null,"Administração Central (AC):",{"$f":"D6*C28","v":30}]
[null,"Risco, seguro e garantia (R):",{"$f":"D14*C28","v":17.7}]
[null,"Despesas Financeiras (DF):",{"$f":"D19*(C28+C35+C36)","v":10.477}]
[null,"Lucro (L):",{"$f":"D21*(C28+C35+C36+C37)","v":63.490620000000007}]
[]
[]
[]
[]
["(*)  OBS: ISS conforme Lei Complementar nº 017/2006 - Artigo 18                                                                   (consulta - Enilene: 37.3433-1228)"]

{"sheet":"BDI FORN","index":3,"n_rows":37,"n_cols":6,"rows_kept":37,"cut":false,"hidden":false,"merged":[[0,0,0,3],[1,0,1,3],[22,0,22,2],[23,0,23,4],[24,0,24,4]]}
["DETALHAMENTO DO BDI "]
["ARRANJOS PRODUTIVOS - FORNECIMENTO"]
[{"$nulls":5}," "]
["Item","Descrição dos serviços","Preço de Venda (%)","Custo Direto (%)"]
[]
[1,"Administração Central (A)",null,2.75E-2]
[]
[2,"Impostos e Taxas (I)",{"$f":"SUM(C9:C12)","v":3.6499999999999998E-2}]
["2.1","ISS",0]
["2.2","PIS",6.4999999999999997E-3]
["2.3","Cofins",0.03]
["2.4","CPRB (INSS)",0]
[]
["3","Risco, seguro e garantia (R) ",null,{"$f":"SUM(D15:D17)","v":1.04E-2}]
["3.1","Risco",null,5.5999999999999999E-3]
["3.2","Seguro",null,2.3999999999999998E-3]
["3.3","Garantia",null,2.3999999999999998E-3]
[]
[4,"Despesas Financeiras (DF)",null,8.5000000000000006E-3]
[]
[5,"Lucro (L)",null,0.05]
[]
["BDI (%):",null,null,{"$f":"(((1+(D6+D14))*(1+D19)*(1+D21)/(1-C8))-1)","v":0.14069357291126083}]
["Fórmula do BDI, de acordo com Acórdão nº 2622/2013 - TCU/Plenárío:"]
["BDI (%) = (((1+(AC+S+R+G))*(1+DF)*(1+L)/(1-I))-1)*100"]
[]
[null,"Custo Direto (CD):",1000]
[null,"Preço de Venda (PV):",{"$f":"C27*(1+D23/1)","v":1140.6935729112608}]
[]
[null,"ISS:",{"$f":"C9*C28","v":0}]
[null,"PIS:",{"$f":"C10*C28","v":7.4145082239231952}]
[null,"Cofins:",{"$f":"C11*C28","v":34.220807187337826}]
[null,"CPRB:",{"$f":"C12*C28","v":0}]
[null,"Administração Central (AC):",{"$f":"D6*C27","v":27.5}]
[null,"Risco, seguro e garantia (R):",{"$f":"D14*C27","v":10.4}]
[null,"Despesas Financeiras (DF):",{"$f":"D19*(C27+C34+C35)","v":8.8221500000000006}]
[null,"Lucro (L):",{"$f":"D21*(C27+C34+C35+C36)","v":52.336107500000004}]

{"sheet":"CRONOGRAMA","index":4,"n_rows":106,"n_cols":9,"rows_kept":106,"cut":false,"hidden":false,"merged":[[107,0,107,7],[0,1,0,7],[1,1,1,7],[2,1,2,7],[3,0,3,7],[7,0,7,7],[4,0,5,7]]}
[null,"Ministério da Integração Nacional"]
[null,"Companhia de Desenvolvimento dos Vales do São Francisco e do Parnaíba"]
[null,"Área de Revitalização das Bacias Hidrográficas"]
["OBRA: CONTRUÇÃO DA ESCOLA DE MESTRES QUEIJEIROS (SÃO ROQUE DE MINAS/MG)"]
["CRONOGRAMA FÍSICO-FINANCEIRO"]
[]
["ITEM","DISCRIMINAÇÃO","MÊS 1","MÊS 2","MÊS 3","MÊS 4","MÊS 5","MÊS 6"]
[]
[1,"SERVIÇOS PRELIMINARES E URBANIZAÇÃO"]
["1.1","Mobilização / Desmobilização de pessoal"]
["1.2","Fornecimento e assentamento de placa de obra em chapa de aço galvanizado"]
["1.3","Aluguel de conteiner para canteiro de obras"]
["1.4","Administração local de obra",{"$nulls":6},{"$f":"#REF!/#REF!","v":{"$error":"#REF!"}}]
["1.5","Locação convencional de obra com gabarito de tábuas corridas, pontaleteadas a cada 1,50m"]
["1.6","Desmatamento e limpeza mecanixada de terreno, com árvores até 15cm"]
["1.7","Corte e aterro compensado"]
[]
[2,"FUNDAÇÕES E ESTRUTURA"]
["2.1","Escavação manual de valas"]
["2.2","Regularização de fundo de valas"]
["2.3","Lastro de concreto magro, consumo mínimo de cimento de 150kg/m³"]
["2.4","Montagem e desmontagem de forma para estrutura em chapa de madeira compensada resinada, e=17mm"]
["2.5","Armação de estrutura convencional de concreto com aço CA-50"]
["2.6","Concretagem de estruturas com concreto fck = 25MPa, com uso de baldes - lançamento, adensamento e acabamento"]
["2.7","Escoramento de formas com madeira de 3a qualidade, não aparelhada"]
["2.8","Laje pré-moldada para fôrro, sobrecarga 100kg/m², inclusive escoramento, capa de concreto fck = 20MPa e ferragem negativa"]
["2.9","Reaterro manual de valas com compactação"]
[]
[3,"ALVENARIA, REVESTIMENTO E ESQUADRIAS"]
["3.1","Alvenaria de vedação com blocos de concreto 9x19x39cm (espessura 9cm)"]
["3.2","Emboço / Massa única em argamassa 1:2:8 aplicada manualmente"]
["3.3","Revestimento de paredes com cerâmica esmaltada 20x20cm"]
["3.4","Pintura látex acrílico em paredes, duas demãos"]
["3.5","Pintura Epóxi sobre alvenaria, duas demãos"]
["3.6","Pintura esmalte sintético sobre superfície metálica, duas demãos"]
["3.7","Porta em chapa metálica de abrir, com requadro e guarnição - completa"]
["3.8","Janela basculante em aço, sem vidro"]
["3.9","Vidro liso incolor, e = 3mm"]
["3.10","Vidro temperado incolor, e=6mm"]
[]
[4,"PISOS E COBERTURA"]
["4.1","Piso em granilite ou marmorite, espessura 8mm, inclusive juntas de dilatação"]
["4.2","Execução de passeio ou piso de concreto moldado in loco, acabamento convencional, não armado"]
["4.3","Rodapé abaulado em marmorite, altura 10cm"]
["4.4","Trama de madeira para telha de fibrocimento, inclusive montagem"]
["4.5","Cobertura com telha ondulada de fibrocimento, espessura 6mm"]
["4.6","Forro de PVC, inclusive estrutura de fixação"]
["4.7","Rufo em chapa de aço galvanizado nº 24, corte de 25cm"]
["4.8","Calha em chapa de aço galvanizado nº 24, desenvolvimento de 33cm"]
[]
[5,"INSTALAÇÕES ELÉTRICAS E HIDRO-SANITÁRIAS"]
["5.1","Execução de instalações elétricas (por unidade)"]
["5.1.1","Padrão de entrada de energia aérea monofásica 50A, inclusive, poste, caixa de proteção para medidor e aterramento"]
["5.1.2","Caixa de passagem em alvenaria 40x40x50, fundo com brita e tampa"]
[]
["5.2","Execução de instalações hidro-sanitárias (por unidade)"]
["5.2.1","Caixa d'água em polietileno 500 litros com acessórios - fornecimento e instalação"]
["5.2.2","Caixa de inspeção em concreto pré-moldado, 60x60x60cm - fornecimento e instalação"]
["5.2.3","Fossa séptica em alvenaria de tijolo cerâmico, volume 1.500L, revestido internamente com massa única e impermeabilizante "]
[]
[6,"FORNECIMENTOS DE MATERIAIS"]
["6.1","Materiais elétricos"]
["6.1.1","Abraçadeira tipo D com cunha em aço, para tubos 3/4\""]
["6.1.2","Cabo de cobre flexível, isolamento em PVC 450/750V, 1,5mm2"]
["6.1.3","Cabo de cobre flexível, isolamento em PVC 450/750V, 2,5mm2"]
["6.1.4","Cabo de cobre flexível, isolamento em PVC 450/750V, 4mm2"]
["6.1.5","Caixa de passagem em PVC 4\"x2\" para eletroduto flexível"]
["6.1.6","Condulete de alumínio para eletroduto roscável 3/4\""]
["6.1.7","Curva 90º eletroduto PVC rosca 1.1/4\""]
["6.1.8","Curva 90º eletroduto PVC rosca 2\""]
["6.1.9","Disjuntor bipolar tipo Nema 10A"]
["6.1.10","Disjuntor monopolar tipo Nema 10A"]
["6.1.11","Eletroduto corrugado PVC 3/4\""]
["6.1.12","Eletroduto PVC rosca 1.1/4\""]
["6.1.13","Eletroduto PVC rosca 2\""]
["6.1.14","Eletroduto PVC rosca 3/4\""]
["6.1.15","Interruptor simples + Tomada 2P+T 10A, 250V - conjunto montado para embutir 4\"x2\" (placa + suporte + módulos)"]
["6.1.16","Interruptor simples 10A, 250V - conjunto montado para embutir 4\"x2\" (placa + suporte + módulos)"]
["6.1.17","Lâmpada fluorescente compacta, branca, 15W, base E27"]
["6.1.18","Luminaria de sobrepor em chapa de aço para 2 lampadas fluorescentes 36W, aletada, completa - lâmpada e reator inclusos"]
["6.1.19","Luminária tipo tartaruga em aluminio, com grade, para 1 lâmpada, base E27"]
["6.1.20","Quadro de distribuição sem barramento, de embutir, para 6 disjuntores Nema"]
["6.1.21","Tomada 2P+T 10A, 250V - conjunto montado para embutir 4\"x2\" (placa + suporte + módulos)"]
[]
["6.2","Materiais hidro-sanitários"]
["6.2.1","Acabamento cromado para registro 3/4\""]
["6.2.2","Adaptador PVC soldável curto com bolsa e rosca 25mm x 3/4\""]
["6.2.3","Adaptador PVC soldável com flange e anel de vedação 25mm x 3/4\" para caixa d'água"]
["6.2.4","Adaptador PVC soldável com flange e anel de vedação 32mm x 1\" para caixa d'água"]
["6.2.5","Joelho 45º PVC esgoto DN 40mm"]
["6.2.6","Joelho 90º PVC soldável 25mm"]
["6.2.7","Joelho 90º PVC soldável 32mm"]
["6.2.8","Joelho 90º PVC soldável com bucha latão, 25mm x 3/4\""]
["6.2.9","Ralo sifonado PVC cilindrico 100x40mm com grelha redonda branca"]
["6.2.10","Registro esfera em PVC com volante, soldável, 25mm"]
["6.2.11","Registro esfera em PVC com volante, soldável, 32mm"]
["6.2.12","Registro gaveta bruto em latão forjado 3/4\""]
["6.2.13","Tê PVC esgoto DN 40mm"]
["6.2.14","Tê PVC soldável 25mm"]
["6.2.15","Tê PVC soldável com bucha latão na bolsa central 25mm x 1/2\""]
["6.2.16","Tê PVC soldável com bucha latão na bolsa central 25mm x 3/4\""]
["6.2.17","Torneira cromada com bico para tanque 3/4\""]
["6.2.18","Torneira metal amarelo com bico para jardim 3/4\""]
["6.2.19","Tubo PVC esgoto, série normal, DN 40mm"]
["6.2.20","Tubo PVC rígido soldável DN 25mm"]
["6.2.21","Tubo PVC rígido soldável DN 32mm"]